[Event "FIDE World Rapid Chess Championship 2021"]
[White "Saric, Ivan"]
[Black "Niemann, Hans Moke"]
[WhiteFideId "14508150"]
[BlackFideId "2093596"]
[WhiteElo "2684"]
[BlackElo "2327"]
[Result "0-1"]
[Round "09"]
[TimeControl "900+10"]
[Date "2021.12.27"]
[WhiteClock "0:00:10"]
[BlackClock "0:06:04"]

1. e4 {[%clk 0:15:00]}  c5 {[%clk 0:15:00]} 2. Nf3 {[%clk 0:15:00]}  d6 {[%clk 0:15:00]} 3. d4 {[%clk 0:15:00]}  cxd4 {[%clk 0:15:00]} 4. Nxd4 {[%clk 0:15:00]}  Nf6 {[%clk 0:15:00]} 5. Nc3 {[%clk 0:15:00]}  Nc6 {[%clk 0:15:00]} 6. Bg5 {[%clk 0:15:00]}  e6 {[%clk 0:15:00]} 7. Qd2 {[%clk 0:15:00]}  a6 {[%clk 0:15:00]} 8. O-O-O {[%clk 0:15:00]}  Bd7 {[%clk 0:15:00]} 9. Kb1 {[%clk 0:15:00]}  b5 {[%clk 0:15:00]} 10. Nxc6 {[%clk 0:15:00]}  Bxc6 {[%clk 0:15:00]} 11. f3 {[%clk 0:15:00]}  Be7 {[%clk 0:15:00]} 12. h4 {[%clk 0:15:00]}  h6 {[%clk 0:15:00]} 13. Be3 {[%clk 0:15:00]}  d5 {[%clk 0:15:00]} 14. e5 {[%clk 0:15:49]}  Nd7 {[%clk 0:15:46]} 15. f4 {[%clk 0:15:49]}  Bxh4 {[%clk 0:15:46]} 16. Ne2 {[%clk 0:15:49]}  Be7 {[%clk 0:15:46]} 17. Nd4 {[%clk 0:15:49]}  Qc7 {[%clk 0:15:46]} 18. f5 {[%clk 0:13:31]}  Nc5 {[%clk 0:15:58]} 19. Bf4 {[%clk 0:13:31]}  Bd7 {[%clk 0:15:58]} 20. g4 {[%clk 0:11:39]}  O-O-O {[%clk 0:15:51]} 21. Rh3 {[%clk 0:11:39]}  Kb8 {[%clk 0:15:51]} 22. Qh2 {[%clk 0:11:39]}  Ne4 {[%clk 0:15:51]} 23. Bd3 {[%clk 0:11:39]}  Bc5 {[%clk 0:14:56]} 24. c3 {[%clk 0:10:51]}  Rhe8 {[%clk 0:14:56]} 25. f6 {[%clk 0:08:29]}  gxf6 {[%clk 0:14:39]} 26. Bxe4 {[%clk 0:08:29]}  dxe4 {[%clk 0:14:39]} 27. Rxh6 {[%clk 0:08:29]}  b4 {[%clk 0:14:39]} 28. Rc1 {[%clk 0:06:37]}  Qb7 {[%clk 0:14:03]} 29. exf6+ {[%clk 0:06:37]}  Ka8 {[%clk 0:14:03]} 30. Nb3 {[%clk 0:04:57]}  Bf8 {[%clk 0:13:42]} 31. Rh7 {[%clk 0:04:57]}  e3 {[%clk 0:13:42]} 32. Rxf7 {[%clk 0:04:57]}  e5 {[%clk 0:13:42]} 33. Bg3 {[%clk 0:04:00]}  Bf5+ {[%clk 0:12:25]} 34. gxf5 {[%clk 0:04:00]}  Qxf7 {[%clk 0:12:25]} 35. Bxe5 {[%clk 0:03:25]}  Qd5 {[%clk 0:10:59]} 36. Bd4 {[%clk 0:03:25]}  e2 {[%clk 0:10:59]} 37. Re1 {[%clk 0:03:25]}  Qxf5+ {[%clk 0:10:59]} 38. Ka1 {[%clk 0:01:30]}  Qf1 {[%clk 0:10:28]} 39. Qh4 {[%clk 0:01:30]}  bxc3 {[%clk 0:10:28]} 40. bxc3 {[%clk 0:01:30]}  Ba3 {[%clk 0:10:28]} 41. Nd2 {[%clk 0:01:30]}  Qf5 {[%clk 0:09:19]} 42. Qh1+ {[%clk 0:00:05]}  Qd5 {[%clk 0:07:19]} 43. Qxd5+ {[%clk 0:00:05]}  Rxd5 {[%clk 0:07:19]} 44. Nc4 {[%clk 0:00:05]}  Rxd4 {[%clk 0:07:19]} 45. cxd4 {[%clk 0:00:05]}  Bb4 {[%clk 0:07:19]} 46. f7 {[%clk 0:00:05]}  Bc3+ {[%clk 0:07:19]} 47. Kb1 {[%clk 0:00:05]}  Rb8+ {[%clk 0:07:19]} 48. Nb6+ {[%clk 0:00:05]}  Rxb6+ {[%clk 0:06:38]} 49. Kc2 {[%clk 0:00:17]}  Bb4 {[%clk 0:06:38]} 50. Rxe2 {[%clk 0:00:17]}  Rf6 {[%clk 0:06:38]} 51. Kb3 {[%clk 0:00:17]}  a5 {[%clk 0:06:38]} 52. a3 {[%clk 0:00:17]}  Rf3+ {[%clk 0:06:38]} 53. Kc4 {[%clk 0:00:17]}  Bxa3 {[%clk 0:06:38]} 54. Kb5 {[%clk 0:00:17]}  Bb4 {[%clk 0:06:38]} 55. d5 {[%clk 0:00:17]}  Rxf7 {[%clk 0:06:38]} 56. d6 {[%clk 0:00:05]}  Rd7 {[%clk 0:06:47]} 57. Re6 {[%clk 0:00:05]}  Kb7 {[%clk 0:06:47]} 58. Re7 {[%clk 0:00:05]}  Kc8 {[%clk 0:06:47]} 59. Re6 {[%clk 0:00:05]}  Rd8 {[%clk 0:06:47]} 60. Rg6 {[%clk 0:00:10]}  Kd7 {[%clk 0:06:04]} 61. Ka4 {[%clk 0:00:10]}  Kc6 {[%clk 0:06:04]} 0-1


[Site "http://www.Chess.com"]

[Event "FIDE World Rapid Chess Championship 2021"]
[White "Sanal, Vahap"]
[Black "Svane, Rasmus"]
[WhiteFideId "6300545"]
[BlackFideId "4657101"]
[WhiteElo "2509"]
[BlackElo "2677"]
[Result "1/2-1/2"]
[Round "09"]
[TimeControl "900+10"]
[Date "2021.12.27"]
[WhiteClock "0:02:36"]
[BlackClock "0:00:54"]

1. e4 {[%clk 0:15:00]}  e5 {[%clk 0:15:00]} 2. Nc3 {[%clk 0:15:00]}  Nf6 {[%clk 0:15:00]} 3. Bc4 {[%clk 0:15:00]}  Nxe4 {[%clk 0:15:00]} 4. Qh5 {[%clk 0:15:00]}  Nd6 {[%clk 0:15:00]} 5. Qxe5+ {[%clk 0:15:00]}  Qe7 {[%clk 0:15:00]} 6. Qxe7+ {[%clk 0:15:00]}  Bxe7 {[%clk 0:15:00]} 7. Be2 {[%clk 0:15:00]}  Nc6 {[%clk 0:15:00]} 8. Nd5 {[%clk 0:15:56]}  Bd8 {[%clk 0:14:23]} 9. c3 {[%clk 0:15:56]}  Ne7 {[%clk 0:14:23]} 10. Nxe7 {[%clk 0:15:56]}  Bxe7 {[%clk 0:14:23]} 11. d4 {[%clk 0:15:56]}  Ne4 {[%clk 0:14:23]} 12. Bf4 {[%clk 0:15:56]}  c6 {[%clk 0:13:26]} 13. f3 {[%clk 0:14:54]}  Nf6 {[%clk 0:13:26]} 14. Bd3 {[%clk 0:13:02]}  d5 {[%clk 0:13:26]} 15. Ne2 {[%clk 0:13:02]}  Nh5 {[%clk 0:13:26]} 16. Bd2 {[%clk 0:13:02]}  g6 {[%clk 0:13:26]} 17. g4 {[%clk 0:13:10]}  Ng7 {[%clk 0:10:29]} 18. Kf2 {[%clk 0:13:10]}  h5 {[%clk 0:10:29]} 19. h3 {[%clk 0:13:10]}  Bd7 {[%clk 0:10:29]} 20. Bf4 {[%clk 0:12:01]}  O-O-O {[%clk 0:10:09]} 21. Be5 {[%clk 0:12:01]}  f6 {[%clk 0:10:09]} 22. Bh2 {[%clk 0:12:01]}  Rh6 {[%clk 0:08:30]} 23. Nf4 {[%clk 0:11:06]}  f5 {[%clk 0:08:30]} 24. Rae1 {[%clk 0:11:06]}  Bh4+ {[%clk 0:08:30]} 25. Bg3 {[%clk 0:11:06]}  Bxg3+ {[%clk 0:08:30]} 26. Kxg3 {[%clk 0:11:06]}  g5 {[%clk 0:08:30]} 27. Nxh5 {[%clk 0:09:44]}  Nxh5+ {[%clk 0:08:14]} 28. gxh5 {[%clk 0:09:44]}  f4+ {[%clk 0:08:14]} 29. Kg2 {[%clk 0:08:45]}  Rxh5 {[%clk 0:08:15]} 30. Re5 {[%clk 0:08:45]}  Re8 {[%clk 0:08:15]} 31. Rxe8+ {[%clk 0:06:17]}  Bxe8 {[%clk 0:06:51]} 32. Bf5+ {[%clk 0:06:17]}  Bd7 {[%clk 0:06:51]} 33. Bg4 {[%clk 0:06:17]}  Rh7 {[%clk 0:04:36]} 34. Re1 {[%clk 0:06:19]}  Kc7 {[%clk 0:04:36]} 35. Re5 {[%clk 0:06:19]}  Rg7 {[%clk 0:04:36]} 36. Kf2 {[%clk 0:06:19]}  Kd6 {[%clk 0:04:36]} 37. Kf1 {[%clk 0:06:00]}  a5 {[%clk 0:03:22]} 38. a4 {[%clk 0:06:00]}  b6 {[%clk 0:02:56]} 39. Kf2 {[%clk 0:04:50]}  Rg8 {[%clk 0:02:56]} 40. b3 {[%clk 0:04:50]}  Bxg4 {[%clk 0:02:56]} 41. fxg4 {[%clk 0:04:50]}  c5 {[%clk 0:02:56]} 42. Rf5 {[%clk 0:04:50]}  Ke6 {[%clk 0:02:56]} 43. c4 {[%clk 0:03:49]}  cxd4 {[%clk 0:01:52]} 44. Rxd5 {[%clk 0:03:49]}  Rh8 {[%clk 0:01:52]} 45. Kg2 {[%clk 0:03:49]}  f3+ {[%clk 0:01:52]} 46. Kxf3 {[%clk 0:03:49]}  Rxh3+ {[%clk 0:01:52]} 47. Ke4 {[%clk 0:03:49]}  Rxb3 {[%clk 0:01:35]} 48. Kxd4 {[%clk 0:02:39]}  Rb4 {[%clk 0:01:35]} 49. Rxg5 {[%clk 0:02:39]}  Rxa4 {[%clk 0:01:35]} 50. Rg6+ {[%clk 0:02:39]}  Kd7 {[%clk 0:01:35]} 51. Rxb6 {[%clk 0:02:39]}  Ra1 {[%clk 0:01:35]} 52. g5 {[%clk 0:02:36]}  a4 {[%clk 0:00:54]} 53. Kc5 {[%clk 0:02:36]}  a3 {[%clk 0:00:54]} 54. Rb3 {[%clk 0:02:36]}  a2 {[%clk 0:00:54]} 55. Rb2 {[%clk 0:02:36]}  Kc7 {[%clk 0:00:54]} 56. g6 {[%clk 0:02:36]}  Rg1 {[%clk 0:00:54]} 57. Rxa2 {[%clk 0:02:36]}  Rg5+ {[%clk 0:00:54]} 58. Kb4 {[%clk 0:02:36]} 1/2-1/2


[Site "http://www.Chess.com"]

[Event "FIDE World Rapid Chess Championship 2021"]
[White "Harsha, Bharathakoti"]
[Black "Matlakov, Maxim"]
[WhiteFideId "5078776"]
[BlackFideId "4168003"]
[WhiteElo "2484"]
[BlackElo "2652"]
[Result "1/2-1/2"]
[Round "09"]
[TimeControl "900+10"]
[Date "2021.12.27"]
[WhiteClock "0:01:11"]
[BlackClock "0:06:14"]

1. d4 {[%clk 0:15:00]}  Nf6 {[%clk 0:15:00]} 2. Nf3 {[%clk 0:15:00]}  d5 {[%clk 0:15:00]} 3. g3 {[%clk 0:15:00]}  c5 {[%clk 0:15:00]} 4. Bg2 {[%clk 0:15:00]}  cxd4 {[%clk 0:15:00]} 5. O-O {[%clk 0:15:00]}  h6 {[%clk 0:15:00]} 6. b3 {[%clk 0:15:00]}  e6 {[%clk 0:15:00]} 7. Bb2 {[%clk 0:15:00]}  Bc5 {[%clk 0:15:00]} 8. Nxd4 {[%clk 0:15:15]}  O-O {[%clk 0:15:09]} 9. c4 {[%clk 0:15:15]}  e5 {[%clk 0:15:09]} 10. Nf3 {[%clk 0:15:15]}  e4 {[%clk 0:15:09]} 11. Nd4 {[%clk 0:15:15]}  Re8 {[%clk 0:15:09]} 12. Na3 {[%clk 0:14:43]}  Qe7 {[%clk 0:15:19]} 13. Nac2 {[%clk 0:11:34]}  dxc4 {[%clk 0:15:19]} 14. bxc4 {[%clk 0:11:34]}  Nc6 {[%clk 0:15:19]} 15. Nxc6 {[%clk 0:11:34]}  bxc6 {[%clk 0:15:19]} 16. Nd4 {[%clk 0:11:34]}  Bd7 {[%clk 0:13:36]} 17. Qc2 {[%clk 0:10:40]}  Bd6 {[%clk 0:10:26]} 18. Rfd1 {[%clk 0:10:25]}  c5 {[%clk 0:10:26]} 19. Nb5 {[%clk 0:10:25]}  Be5 {[%clk 0:10:26]} 20. Bxe5 {[%clk 0:08:19]}  Qxe5 {[%clk 0:10:20]} 21. Nd6 {[%clk 0:06:00]}  Re6 {[%clk 0:10:28]} 22. Nxe4 {[%clk 0:04:11]}  Nxe4 {[%clk 0:09:03]} 23. Qxe4 {[%clk 0:04:11]}  Qxe4 {[%clk 0:09:03]} 24. Bxe4 {[%clk 0:04:11]}  Rxe4 {[%clk 0:09:03]} 25. Rxd7 {[%clk 0:04:11]}  Rxe2 {[%clk 0:09:03]} 26. Rb1 {[%clk 0:04:11]}  Rxa2 {[%clk 0:09:03]} 27. Rbb7 {[%clk 0:04:11]}  Rf8 {[%clk 0:09:03]} 28. Rdc7 {[%clk 0:04:11]}  g5 {[%clk 0:09:04]} 29. Rxc5 {[%clk 0:02:18]}  Kg7 {[%clk 0:07:36]} 30. Rcc7 {[%clk 0:02:18]}  a5 {[%clk 0:07:36]} 31. Ra7 {[%clk 0:02:18]}  a4 {[%clk 0:07:36]} 32. g4 {[%clk 0:02:18]}  h5 {[%clk 0:07:36]} 33. gxh5 {[%clk 0:01:53]}  Kh6 {[%clk 0:06:19]} 34. Rc6+ {[%clk 0:01:53]}  Kxh5 {[%clk 0:06:19]} 35. Rca6 {[%clk 0:01:53]}  f6 {[%clk 0:06:14]} 36. Rxa4 {[%clk 0:01:11]}  Rc2 {[%clk 0:06:14]} 37. Ra8 {[%clk 0:01:11]}  Rxa8 {[%clk 0:06:14]} 38. Rxa8 {[%clk 0:01:11]}  Rxc4 {[%clk 0:06:14]} 39. Ra3 {[%clk 0:01:11]}  Kg6 {[%clk 0:06:14]} 1/2-1/2


[Site "http://www.Chess.com"]

[Event "FIDE World Rapid Chess Championship 2021"]
[White "Petrosian, Tigran L."]
[Black "Gukesh, D"]
[WhiteFideId "13301616"]
[BlackFideId "46616543"]
[WhiteElo "2621"]
[BlackElo "2050"]
[Result "0-1"]
[Round "09"]
[TimeControl "900+10"]
[Date "2021.12.27"]
[WhiteClock "0:00:16"]
[BlackClock "0:00:12"]

1. Nf3 {[%clk 0:15:00]}  d5 {[%clk 0:15:00]} 2. g3 {[%clk 0:15:00]}  g6 {[%clk 0:15:00]} 3. c4 {[%clk 0:15:00]}  dxc4 {[%clk 0:15:00]} 4. Na3 {[%clk 0:15:00]}  Bg7 {[%clk 0:15:00]} 5. Nxc4 {[%clk 0:15:00]}  Nc6 {[%clk 0:15:00]} 6. d3 {[%clk 0:15:00]}  e5 {[%clk 0:15:00]} 7. Bd2 {[%clk 0:15:00]}  Nge7 {[%clk 0:15:00]} 8. Bg2 {[%clk 0:15:00]}  O-O {[%clk 0:15:00]} 9. O-O {[%clk 0:15:00]}  a5 {[%clk 0:15:00]} 10. Bc3 {[%clk 0:15:00]}  f6 {[%clk 0:15:00]} 11. b3 {[%clk 0:15:00]}  Be6 {[%clk 0:15:07]} 12. Rc1 {[%clk 0:16:05]}  Qd7 {[%clk 0:15:07]} 13. Bb2 {[%clk 0:16:05]}  Rfd8 {[%clk 0:13:45]} 14. Re1 {[%clk 0:14:40]}  Ra7 {[%clk 0:13:45]} 15. Nfd2 {[%clk 0:12:28]}  Bd5 {[%clk 0:13:45]} 16. Ne4 {[%clk 0:12:28]}  b6 {[%clk 0:13:45]} 17. Ne3 {[%clk 0:12:28]}  Be6 {[%clk 0:13:45]} 18. Nc3 {[%clk 0:12:07]}  Nd4 {[%clk 0:11:50]} 19. Nc4 {[%clk 0:12:07]}  Bg4 {[%clk 0:11:50]} 20. Ba3 {[%clk 0:08:47]}  Nc8 {[%clk 0:07:46]} 21. Ne3 {[%clk 0:07:58]}  Be6 {[%clk 0:07:46]} 22. Ned5 {[%clk 0:07:58]}  Nf5 {[%clk 0:07:54]} 23. Qd2 {[%clk 0:05:43]}  Ncd6 {[%clk 0:03:52]} 24. Bxd6 {[%clk 0:04:06]}  Nxd6 {[%clk 0:03:52]} 25. Na4 {[%clk 0:04:06]}  Nf5 {[%clk 0:03:52]} 26. Ndc3 {[%clk 0:04:06]}  Bh6 {[%clk 0:03:52]} 27. e3 {[%clk 0:04:06]}  Bg7 {[%clk 0:03:52]} 28. Qc2 {[%clk 0:03:08]}  Ne7 {[%clk 0:03:24]} 29. d4 {[%clk 0:03:08]}  exd4 {[%clk 0:03:24]} 30. exd4 {[%clk 0:03:08]}  Bf7 {[%clk 0:03:24]} 31. Rxe7 {[%clk 0:03:09]}  Qxe7 {[%clk 0:02:52]} 32. Nb5 {[%clk 0:03:09]}  c5 {[%clk 0:00:27]} 33. Nxb6 {[%clk 0:01:07]}  Bh6 {[%clk 0:00:27]} 34. Rf1 {[%clk 0:01:07]}  Ra6 {[%clk 0:00:27]} 35. dxc5 {[%clk 0:01:07]}  Rd2 {[%clk 0:00:27]} 36. Qc3 {[%clk 0:01:07]}  Rxa2 {[%clk 0:00:27]} 37. Re1 {[%clk 0:00:32]}  Re2 {[%clk 0:00:23]} 38. Rxe2 {[%clk 0:00:32]}  Qxe2 {[%clk 0:00:23]} 39. Bf1 {[%clk 0:00:32]}  Qe5 {[%clk 0:00:23]} 40. Qc2 {[%clk 0:00:32]}  Kg7 {[%clk 0:00:23]} 41. h4 {[%clk 0:00:32]}  Be6 {[%clk 0:00:23]} 42. Kh2 {[%clk 0:00:32]}  Bf5 {[%clk 0:00:23]} 43. Qc4 {[%clk 0:00:16]}  Qe1 {[%clk 0:00:12]} 44. Kg1 {[%clk 0:00:16]}  Be3 {[%clk 0:00:12]} 45. fxe3 {[%clk 0:00:16]}  Qxg3+ {[%clk 0:00:12]} 46. Kh1 {[%clk 0:00:16]}  Qxe3 {[%clk 0:00:12]} 47. Nd6 {[%clk 0:00:16]}  Ra7 {[%clk 0:00:12]} 48. Nxf5+ {[%clk 0:00:16]}  gxf5 {[%clk 0:00:12]} 49. Nd5 {[%clk 0:00:16]}  Qf2 {[%clk 0:00:12]} 50. Bg2 {[%clk 0:00:16]}  Kh8 {[%clk 0:00:12]} 51. Qf4 {[%clk 0:00:16]}  Qxc5 {[%clk 0:00:12]} 52. Nxf6 {[%clk 0:00:16]}  Re7 {[%clk 0:00:12]} 53. Qg5 {[%clk 0:00:16]}  Re1+ {[%clk 0:00:12]} 54. Kh2 {[%clk 0:00:16]}  Qg1+ {[%clk 0:00:12]} 55. Kh3 {[%clk 0:00:16]}  Re3+ {[%clk 0:00:12]} 0-1


[Site "http://www.Chess.com"]

[Event "FIDE World Rapid Chess Championship 2021"]
[White "Sargsyan, Shant"]
[Black "Santos Latasa, Jaime"]
[WhiteFideId "13306766"]
[BlackFideId "2293307"]
[WhiteElo "2344"]
[BlackElo "2618"]
[Result "0-1"]
[Round "09"]
[TimeControl "900+10"]
[Date "2021.12.27"]
[WhiteClock "0:00:49"]
[BlackClock "0:01:31"]

1. d4 {[%clk 0:15:00]}  Nf6 {[%clk 0:15:00]} 2. c4 {[%clk 0:15:00]}  e6 {[%clk 0:15:00]} 3. Nf3 {[%clk 0:15:00]}  d5 {[%clk 0:15:00]} 4. g3 {[%clk 0:15:00]}  Be7 {[%clk 0:15:00]} 5. Bg2 {[%clk 0:15:00]}  O-O {[%clk 0:15:00]} 6. O-O {[%clk 0:15:00]}  c6 {[%clk 0:15:00]} 7. Qc2 {[%clk 0:15:00]}  b6 {[%clk 0:15:00]} 8. b3 {[%clk 0:15:00]}  Bb7 {[%clk 0:15:00]} 9. Nc3 {[%clk 0:15:00]}  Nbd7 {[%clk 0:15:00]} 10. e4 {[%clk 0:13:10]}  Ba6 {[%clk 0:15:39]} 11. e5 {[%clk 0:13:10]}  Ne8 {[%clk 0:15:39]} 12. Qe2 {[%clk 0:13:10]}  Nc7 {[%clk 0:15:39]} 13. Rd1 {[%clk 0:13:10]}  dxc4 {[%clk 0:15:39]} 14. bxc4 {[%clk 0:13:10]}  b5 {[%clk 0:15:39]} 15. Qe4 {[%clk 0:13:09]}  b4 {[%clk 0:13:36]} 16. Ne2 {[%clk 0:09:37]}  Bxc4 {[%clk 0:13:36]} 17. Nf4 {[%clk 0:09:37]}  Nd5 {[%clk 0:13:36]} 18. Nh5 {[%clk 0:09:37]}  Nc3 {[%clk 0:13:36]} 19. Qg4 {[%clk 0:09:37]}  g6 {[%clk 0:13:36]} 20. Re1 {[%clk 0:08:26]}  Ne2+ {[%clk 0:13:13]} 21. Kh1 {[%clk 0:08:26]}  Nxc1 {[%clk 0:13:13]} 22. Rexc1 {[%clk 0:08:26]}  Bd3 {[%clk 0:13:13]} 23. Nh4 {[%clk 0:07:31]}  Bxh4 {[%clk 0:12:39]} 24. gxh4 {[%clk 0:06:04]}  Kh8 {[%clk 0:12:39]} 25. Nf4 {[%clk 0:06:04]}  Bf5 {[%clk 0:12:39]} 26. Qg3 {[%clk 0:06:04]}  Rc8 {[%clk 0:12:39]} 27. a3 {[%clk 0:05:21]}  b3 {[%clk 0:09:36]} 28. Qxb3 {[%clk 0:05:21]}  Qxh4 {[%clk 0:09:36]} 29. Qe3 {[%clk 0:03:38]}  Nb6 {[%clk 0:09:10]} 30. Bxc6 {[%clk 0:03:38]}  Rfd8 {[%clk 0:07:19]} 31. Bb7 {[%clk 0:02:59]}  Rc4 {[%clk 0:07:19]} 32. Rd1 {[%clk 0:02:59]}  Rc2 {[%clk 0:05:18]} 33. Qg3 {[%clk 0:02:59]}  Qxg3 {[%clk 0:05:18]} 34. fxg3 {[%clk 0:02:59]}  g5 {[%clk 0:04:38]} 35. Ng2 {[%clk 0:02:04]}  Rd7 {[%clk 0:04:38]} 36. Ba6 {[%clk 0:02:04]}  Be4 {[%clk 0:04:38]} 37. Bf1 {[%clk 0:02:04]}  Nc4 {[%clk 0:04:38]} 38. Kg1 {[%clk 0:02:04]}  Nd2 {[%clk 0:03:38]} 39. Ne1 {[%clk 0:00:55]}  Rb2 {[%clk 0:03:38]} 40. Bg2 {[%clk 0:00:55]}  Rxd4 {[%clk 0:03:38]} 41. Rac1 {[%clk 0:00:55]}  Bxg2 {[%clk 0:03:38]} 42. Kxg2 {[%clk 0:00:19]}  Nc4+ {[%clk 0:02:08]} 43. Kh3 {[%clk 0:00:19]}  g4+ {[%clk 0:02:08]} 44. Kh4 {[%clk 0:00:19]}  Rxh2+ {[%clk 0:02:08]} 45. Kg5 {[%clk 0:00:19]}  h6+ {[%clk 0:02:08]} 46. Kf6 {[%clk 0:00:19]}  Rf2+ {[%clk 0:02:08]} 47. Ke7 {[%clk 0:00:19]}  Rxd1 {[%clk 0:02:08]} 48. Rxd1 {[%clk 0:00:19]}  Nxe5 {[%clk 0:01:31]} 49. Rc1 {[%clk 0:00:49]}  Kg7 {[%clk 0:01:31]} 50. Nc2 {[%clk 0:00:49]}  Nd3 {[%clk 0:01:31]} 0-1


[Site "http://www.Chess.com"]

[Event "FIDE World Rapid Chess Championship 2021"]
[White "Mamedyarov, Shakhriyar"]
[Black "Piorun, Kacper"]
[WhiteFideId "13401319"]
[BlackFideId "1130420"]
[WhiteElo "2727"]
[BlackElo "2547"]
[Result "1-0"]
[Round "09"]
[TimeControl "900+10"]
[Date "2021.12.27"]
[WhiteClock "0:04:55"]
[BlackClock "0:00:08"]

1. d4 {[%clk 0:15:00]}  Nf6 {[%clk 0:15:00]} 2. c4 {[%clk 0:15:00]}  e6 {[%clk 0:15:00]} 3. Nc3 {[%clk 0:15:00]}  Bb4 {[%clk 0:15:00]} 4. Qc2 {[%clk 0:15:00]}  d5 {[%clk 0:15:00]} 5. a3 {[%clk 0:15:00]}  Bxc3+ {[%clk 0:15:00]} 6. Qxc3 {[%clk 0:15:00]}  O-O {[%clk 0:15:00]} 7. Bg5 {[%clk 0:15:00]}  h6 {[%clk 0:15:00]} 8. Bh4 {[%clk 0:15:00]}  c5 {[%clk 0:14:04]} 9. dxc5 {[%clk 0:15:38]}  d4 {[%clk 0:14:04]} 10. Qf3 {[%clk 0:15:38]}  Nbd7 {[%clk 0:14:04]} 11. O-O-O {[%clk 0:15:13]}  e5 {[%clk 0:12:01]} 12. e3 {[%clk 0:13:47]}  e4 {[%clk 0:11:04]} 13. Bxf6 {[%clk 0:11:24]}  Nxf6 {[%clk 0:10:46]} 14. Qf4 {[%clk 0:11:24]}  d3 {[%clk 0:10:46]} 15. f3 {[%clk 0:11:24]}  Be6 {[%clk 0:09:36]} 16. fxe4 {[%clk 0:10:13]}  g5 {[%clk 0:09:36]} 17. Qe5 {[%clk 0:09:37]}  Bxc4 {[%clk 0:07:33]} 18. Qc3 {[%clk 0:09:37]}  Ba6 {[%clk 0:07:33]} 19. Bxd3 {[%clk 0:09:37]}  Bxd3 {[%clk 0:07:33]} 20. Qxd3 {[%clk 0:09:22]}  Qxd3 {[%clk 0:05:50]} 21. Rxd3 {[%clk 0:09:22]}  Nxe4 {[%clk 0:05:50]} 22. Nh3 {[%clk 0:09:22]}  Nxc5 {[%clk 0:05:50]} 23. Rd5 {[%clk 0:09:22]}  Rac8 {[%clk 0:05:50]} 24. Kb1 {[%clk 0:09:22]}  Rc7 {[%clk 0:05:48]} 25. Nf2 {[%clk 0:07:53]}  Kg7 {[%clk 0:05:48]} 26. h4 {[%clk 0:07:53]}  Ne6 {[%clk 0:04:12]} 27. Ne4 {[%clk 0:07:07]}  gxh4 {[%clk 0:04:12]} 28. Rxh4 {[%clk 0:07:07]}  f5 {[%clk 0:04:12]} 29. Ng3 {[%clk 0:07:07]}  Rcf7 {[%clk 0:02:02]} 30. Rd6 {[%clk 0:07:05]}  Re8 {[%clk 0:02:02]} 31. e4 {[%clk 0:07:05]}  fxe4 {[%clk 0:02:02]} 32. Rxe4 {[%clk 0:07:05]}  Nc7 {[%clk 0:01:18]} 33. Rg4+ {[%clk 0:06:32]}  Kf8 {[%clk 0:01:18]} 34. Rxh6 {[%clk 0:06:32]}  Re6 {[%clk 0:01:18]} 35. Rh5 {[%clk 0:06:37]}  Ref6 {[%clk 0:00:02]} 36. Ne4 {[%clk 0:06:37]}  Rf4 {[%clk 0:00:02]} 37. Rxf4 {[%clk 0:06:37]}  Rxf4 {[%clk 0:00:02]} 38. Nd6 {[%clk 0:06:37]}  Rg4 {[%clk 0:00:02]} 39. Rh7 {[%clk 0:06:37]}  Ne6 {[%clk 0:00:02]} 40. Rf7+ {[%clk 0:06:37]}  Kg8 {[%clk 0:00:02]} 41. Rxb7 {[%clk 0:06:37]}  a5 {[%clk 0:00:08]} 42. Ra7 {[%clk 0:04:55]}  a4 {[%clk 0:00:08]} 43. Nf5 {[%clk 0:04:55]}  Kh8 {[%clk 0:00:08]} 44. Ra6 {[%clk 0:04:55]}  Nc5 {[%clk 0:00:08]} 45. Rh6+ {[%clk 0:04:55]}  Kg8 {[%clk 0:00:08]} 46. Rc6 {[%clk 0:04:55]} 1-0


[Site "http://www.Chess.com"]